bitfinex-derivatives/quotes_ETHF0:USTF0_20250430
["timestamp","ask_amount","ask_price","bid_price","bid_amount"]
[1745990567332,4.31406,1807.5,1807.4,6.2493]
[1745990568332,1.10626,1807.5,1807.4,6.2493]
[1745990568629,4.34789,1807.6,1807.4,7.35555]
[1745990568825,4.34789,1807.6,1807.5,1.6536]
[1745990569030,7.55569,1807.6,1807.5,1.6536]
[1745990570532,1.10619,1807.6,1807.5,1.6536]
[1745990573332,4.31399,1807.6,1807.5,1.6536]
[1745990576330,1.10619,1807.6,1807.5,1.6536]
[1745990576639,4.31399,1807.6,1807.5,1.6536]
[1745990577139,1.10619,1807.6,1807.5,1.6536]
[1745990578143,4.31399,1807.6,1807.5,5.4816]
[1745990580045,2.4478,1807.7,1807.5,6.58782]
[1745990580244,3.5539,1807.7,1807.6,1.7171]
[1745990580744,1.10616,1807.6,1807.5,3.828]
[1745990580946,6.86116,1807.6,1807.5,3.828]
[1745990590950,6.86116,1807.6,1807.5,5.5641]
[1745990591756,4.31396,1807.6,1807.5,5.5641]
[1745990591955,4.31396,1807.6,1807.5,6.4254]
[1745990592151,4.31396,1807.6,1807.5,2.5974]
[1745990593646,3.2078,1807.6,1807.5,2.5974]
[1745990594044,3.2078,1807.6,1807.5,3.70362]
[1745990594255,3.2078,1807.6,1807.5,7.53162]
[1745990594753,1.10615,1807.7,1807.5,7.53162]
[1745990594958,4.31396,1807.6,1807.5,4.6893]
[1745990595255,1.10616,1807.6,1807.5,4.6893]
[1745990595859,4.31396,1807.6,1807.5,4.6893]
[1745990596352,1.10616,1807.6,1807.5,4.6893]
[1745990596552,4.31396,1807.6,1807.5,3.828]
[1745990596952,5.12406,1807.6,1807.5,3.828]
[1745990597454,4.31396,1807.6,1807.5,3.828]
[1745990597756,1.10616,1807.6,1807.5,4.6973]
[1745990598958,4.31396,1807.6,1807.5,4.6973]
[1745990599161,4.31396,1807.6,1807.5,0.8693]
[1745990599458,3.2078,1807.6,1807.5,1.97552]
[1745990600359,1.10616,1807.6,1807.5,1.97552]
[1745990601161,1.10616,1807.6,1807.5,4.6973]
[1745990601356,4.31396,1807.6,1807.5,3.828]
[1745990603356,1.10616,1807.6,1807.5,3.828]
[1745990605064,4.31396,1807.6,1807.5,3.828]
[1745990609965,6.06336,1807.6,1807.5,3.828]
[1745990611475,1.10634,1807.3,1807.2,1.6751]
[1745990611769,2.76604,1807.2,1806.8,7.36931282]
[1745990611969,1.10657,1807.0,1806.9,1.7066]
[1745990612172,1.10657,1807.0,1806.9,5.5346]
[1745990613366,4.31437,1807.0,1806.9,4.6903]
[1745990613570,5.99367,1807.0,1806.9,4.6903]
[1745990613772,5.99367,1807.0,1806.9,3.828]
[1745990614273,5.99367,1807.0,1806.9,5.4786]
[1745990614970,5.99367,1807.0,1806.9,3.828]
[1745990615572,5.99367,1807.0,1806.9,5.4414]
[1745990624677,4.31437,1807.0,1806.9,5.4414]
[1745990625676,3.2078,1807.0,1806.9,5.4414]
[1745990626579,3.2078,1807.0,1806.9,6.54799]
[1745990627174,6.7328,1807.2,1806.9,10.4414]
[1745990627373,6.7328,1807.2,1807.0,4.44648]
[1745990627573,7.8392,1807.2,1807.1,1.6746]
[1745990631881,1.1064,1807.2,1807.1,1.6746]
[1745990633178,4.3142,1807.2,1807.1,1.6746]
[1745990634278,1.1064,1807.2,1807.1,1.6746]
[1745990634682,2.74339,1807.3,1807.1,1.6746]
[1745990634881,3.2078,1807.2,1807.1,1.6746]
[1745990635482,4.3142,1807.2,1807.1,1.6746]
[1745990636784,3.2078,1807.2,1807.1,1.6746]
[1745990637086,3.2078,1807.4,1807.3,1.10629]
[1745990638086,3.2078,1807.4,1807.3,6.56089]
[1745990638683,4.31408,1807.4,1807.3,5.4546]
[1745990640286,4.31408,1807.4,1807.3,7.1031]
[1745990640886,3.2078,1807.4,1807.3,7.1031]
[1745990641981,4.31408,1807.4,1807.3,7.1031]
[1745990642387,1.10628,1807.4,1807.3,7.1031]
[1745990642590,1.10628,1807.4,1807.3,8.20944]
[1745990642987,6.80297,1807.5,1807.3,8.20944]
[1745990643192,6.80292,1807.5,1807.4,1.6611]
[1745990644183,6.80292,1807.5,1807.4,5.4891]
[1745990649404,3.59512,1807.5,1807.4,5.4891]
[1745990649590,6.80292,1807.5,1807.4,5.4891]
[1745990652198,3.2078,1807.5,1807.4,5.4891]
[1745990652398,4.31402,1807.5,1807.4,5.4891]
[1745990655299,1.10622,1807.5,1807.4,5.4891]
[1745990655503,3.2078,1807.5,1807.4,6.59538]
[1745990655697,4.31402,1807.5,1807.4,5.4891]
[1745990659703,1.10622,1807.5,1807.4,5.4891]
[1745990660007,4.31402,1807.5,1807.4,5.4891]
[1745990663397,3.2078,1807.5,1807.4,6.59538]
[1745990664309,4.31402,1807.5,1807.4,6.59538]
[1745990664703,4.31402,1807.5,1807.4,5.4891]
[1745990665004,4.31402,1807.5,1807.4,6.59538]
[1745990665204,4.31402,1807.5,1807.4,2.76738]
[1745990665604,4.31402,1807.5,1807.4,1.6611]
[1745990666606,4.31402,1807.5,1807.3,1.1063]
[1745990666907,4.31407,1807.5,1807.3,2.7764]
[1745990667311,4.31407,1807.5,1807.4,1.5782]
[1745990675008,1.10634,1807.3,1807.2,1.6263]
[1745990675208,1.10634,1807.3,1807.2,3.2782]
[1745990676014,5.89564,1807.3,1807.2,1.6519]
[1745990676314,5.89564,1807.3,1807.2,3.828]
[1745990676515,2.68784,1807.3,1807.2,3.828]
[1745990676908,5.89564,1807.3,1807.2,3.828]
[1745990679418,2.68784,1807.3,1807.2,3.828]
[1745990681213,5.89564,1807.3,1807.2,3.828]
[1745990682815,4.31414,1807.3,1807.2,3.828]
[1745990684015,5.95364,1807.3,1807.2,3.828]
[1745990693621,2.74584,1807.3,1807.2,3.828]
[1745990693820,5.95364,1807.3,1807.2,3.828]
[1745990694119,2.74584,1807.3,1807.2,3.828]
[1745990694422,5.95364,1807.3,1807.2,3.828]
[1745990694920,4.31414,1807.3,1807.2,3.828]
[1745990695120,4.31414,1807.3,1807.2,6.2454]
[1745990700915,3.2078,1807.3,1807.2,7.3518]
[1745990701520,4.31414,1807.3,1807.2,6.2454]
[1745990706826,1.10634,1807.3,1807.2,6.2454]
[1745990709119,3.2078,1807.5,1807.2,6.2454]
[1745990709424,3.2078,1807.5,1807.3,2.4318]
[1745990709614,4.31402,1807.5,1807.4,1.6835]
[1745990711023,1.10622,1807.5,1807.4,1.6835]
[1745990713231,1.10622,1807.5,1807.4,2.78978]
[1745990713731,1.10614,1807.7,1807.5,1.10619]
[1745990713926,1.1061,1807.7,1807.6,2.5428]
[1745990716526,5.97907,1807.8,1807.6,3.64896]
[1745990716727,5.97907,1807.8,1807.7,1.7129]
[1745990716927,5.97907,1807.8,1807.7,2.5682]
[1745990718033,4.873,1807.8,1807.2,3.2078]
[1745990718233,4.314,1807.6,1807.4,1.7129]
[1745990718430,0.8295,1807.5,1807.4,1.7129]
[1745990718735,1.93572,1807.5,1807.4,1.7129]
[1745990719627,3.65522,1807.5,1807.4,1.7129]
[1745990720025,4.51912,1807.5,1807.4,1.7129]
[1745990720221,4.51912,1807.5,1807.4,5.5409]
[1745990726037,4.51912,1807.5,1807.4,3.828]
[1745990730345,1.1064,1807.2,1807.1,2.5505]
[1745990731245,1.9495,1807.2,1807.1,2.5505]
[1745990732046,1.9495,1807.2,1807.1,1.7001]
[1745990732245,4.3497,1807.2,1807.1,1.7001]
[1745990738050,1.1064,1807.2,1807.1,1.7001]
[1745990738237,1.1064,1807.2,1807.1,2.547]
[1745990740441,1.9004,1807.2,1807.1,2.547]
[1745990745347,5.1082,1807.2,1807.1,1.7001]
[1745990745552,6.6945,1807.2,1807.1,1.7001]
[1745990745853,7.5196,1807.2,1807.1,1.7001]
[1745990750566,4.3118,1807.2,1807.1,1.7001]
[1745990750862,7.5196,1807.2,1807.1,1.7001]
[1745990752963,5.9333,1807.2,1807.1,1.7001]
[1745990753762,2.7255,1807.2,1807.1,1.7001]
[1745990754065,5.9333,1807.2,1807.1,1.7001]
[1745990754564,2.7255,1807.2,1807.1,1.7001]
[1745990754766,5.9333,1807.2,1807.1,1.7001]
[1745990755168,2.7255,1807.2,1807.1,1.7001]
[1745990755355,5.9333,1807.2,1807.1,1.7001]
[1745990756069,4.3142,1807.2,1807.1,1.7001]
[1745990759971,4.3142,1807.2,1807.1,2.80656]
[1745990760366,4.3142,1807.2,1807.1,1.7001]
[1745990760971,1.1064,1807.2,1807.1,1.7001]
[1745990764071,4.31419,1807.3,1807.1,2.80656]
[1745990764271,4.31419,1807.3,1807.2,1.657]
[1745990764573,4.31419,1807.3,1807.2,3.2872]
[1745990765179,4.31419,1807.3,1807.2,7.1152]
[1745990765674,4.31419,1807.3,1807.2,6.3181]
[1745990765878,6.04469,1807.3,1807.2,6.3181]
[1745990766180,6.90859,1807.3,1807.2,6.3181]
[1745990767575,5.17809,1807.3,1807.2,6.3181]
[1745990768576,6.85759,1807.3,1807.2,6.3181]
[1745990769177,6.85759,1807.3,1807.2,3.828]
[1745990769378,1.10659,1806.9,1806.8,2.4603]
[1745990769573,4.31439,1806.9,1806.8,2.4603]
[1745990770181,4.31439,1806.9,1806.8,6.2883]
[1745990770382,5.99389,1806.9,1806.8,6.2883]
[1745990777876,5.99389,1806.9,1806.8,5.4636]
[1745990778071,5.99389,1806.9,1806.8,3.828]
[1745990779877,5.99389,1806.9,1806.8,5.4257]
[1745990780685,3.2078,1807.1,1806.8,5.4257]
[1745990780984,1.10655,1807.0,1806.9,3.233]
[1745990782176,1.10655,1807.0,1806.9,7.061]
[1745990783384,2.74035,1807.0,1806.9,3.828]
[1745990784077,3.59385,1807.0,1806.9,3.828]
[1745990785173,3.59385,1807.0,1806.9,5.5659]
[1745990790282,3.59385,1807.0,1806.9,6.4131]
[1745990796895,3.59385,1807.0,1806.9,5.5659]
[1745990797093,3.59385,1807.0,1806.9,3.828]
[1745990798191,3.59385,1807.0,1806.9,5.5708]
[1745990802290,3.59385,1807.0,1806.9,1.7428]
[1745990803294,3.59385,1807.0,1806.9,5.5708]
[1745990805790,6.80165,1807.0,1806.9,5.5708]
[1745990806298,4.31435,1807.0,1806.9,5.5708]
[1745990806597,4.31435,1807.0,1806.9,6.4157]
[1745990810298,5.11275,1807.0,1806.9,6.4157]
[1745990811500,1.90495,1807.0,1806.9,6.4157]
[1745990811799,5.11275,1807.0,1806.9,6.4157]
[1745990816701,6.72325,1807.0,1806.9,5.5708]
[1745990817893,6.72325,1807.0,1806.9,3.828]
[1745990831715,3.51545,1807.0,1806.9,3.828]
[1745990831913,6.72325,1807.0,1806.9,3.828]
[1745990836819,6.72325,1807.0,1806.9,4.6269]
[1745990837426,10.23625,1807.0,1806.9,4.6269]
[1745990842026,7.02845,1807.0,1806.9,4.6269]
[1745990842227,10.23625,1807.0,1806.9,4.6269]
[1745990843330,8.62575,1807.0,1806.9,4.6269]
[1745990843530,8.62575,1807.0,1806.9,5.4245]
[1745990848529,8.62575,1807.0,1806.9,2.60964]
[1745990848735,1.10683,1806.5,1806.4,0.8611]
[1745990848939,4.31463,1806.5,1806.4,1.6056]
[1745990849331,5.95713,1806.5,1806.4,5.4336]
[1745990851140,6.39448769,1806.5,1806.4,5.4336]
[1745990853542,6.39448769,1806.5,1806.4,3.828]
[1745990855037,4.31463,1806.5,1806.4,3.828]
[1745990857348,4.31060435,1806.5,1806.4,3.828]
[1745990860543,7.72430435,1806.5,1806.4,3.828]
[1745990863150,4.51650435,1806.5,1806.4,3.828]
[1745990863347,7.72430435,1806.5,1806.4,3.828]
[1745990866854,4.31060435,1806.5,1806.4,3.828]
[1745990867158,3.2078,1806.5,1806.4,3.828]
[1745990867348,3.2078,1806.5,1806.4,4.93489]
[1745990867548,4.31463,1806.5,1806.4,5.4479]
[1745990871657,6.75153,1806.5,1806.4,5.4479]
[1745990874861,6.75153,1806.5,1806.4,3.828]
[1745990875460,6.84755694,1806.5,1806.4,3.828]
[1745990879278,6.84756028,1806.5,1806.4,3.828]
[1745990880770,6.84755818,1806.5,1806.4,3.828]
[1745990881177,6.84755728,1806.5,1806.4,3.828]
[1745990881583,6.75153,1806.5,1806.4,3.828]
[1745990881791,6.75153,1806.5,1806.4,5.4087]
[1745990882776,6.8475522,1806.5,1806.4,5.4087]
[1745990883684,6.75153,1806.5,1806.4,5.4087]
[1745990885984,6.84755712,1806.5,1806.4,5.4087]
[1745990886485,6.84755712,1806.5,1806.4,7.42e-06]
[1745990886684,6.84755516,1806.5,1806.4,7.42e-06]
[1745990886885,1.10714,1806.0,1805.9,2.4538]
[1745990887081,4.31494,1806.0,1805.9,0.8461]
[1745990887281,4.31494,1806.0,1805.9,5.8461]
[1745990887485,4.31494,1806.0,1805.9,0.8461]
[1745990888388,4.31494,1806.0,1805.9,4.6741]
[1745990896195,4.31494,1806.0,1805.9,3.828]
[1745990896894,5.12784,1806.0,1805.9,3.828]
[1745990898587,5.98884,1806.0,1805.9,3.828]
[1745990898790,10.98884,1806.0,1805.9,3.828]
[1745990899597,11.08487155,1806.0,1805.9,3.828]
[1745990900696,6.08487155,1806.0,1805.9,3.828]
[1745990902902,6.08487155,1806.0,1805.9,2.2203]
[1745990903696,2.87707155,1806.0,1805.9,2.2203]
[1745990903902,6.08487155,1806.0,1805.9,2.2203]
[1745990904601,5.98884,1806.0,1805.9,2.2203]
[1745990904801,6.08488284,1806.0,1805.9,2.2203]
[1745990905802,6.08487883,1806.0,1805.9,2.2203]
[1745990906202,5.98884,1806.0,1805.9,2.2203]
[1745990906402,6.08487625,1806.0,1805.9,2.2203]
[1745990909307,6.08487091,1806.0,1805.9,2.2203]
[1745990910005,5.98884,1806.0,1805.9,2.2203]
[1745990910297,6.08487138,1806.0,1805.2,9.1098]
[1745990910501,1.10773,1805.1,1804.9,12.73408282]
[1745990910702,1.10773,1805.1,1804.9,7.36931282]
[1745990910902,1.10773,1805.1,1804.9,12.36931282]
[1745990911098,1.10773,1805.1,1804.9,16.19731282]
[1745990911303,1.10769,1805.1,1804.9,16.19731282]
[1745990912004,1.10775,1805.0,1804.9,16.19731282]
[1745990912198,1.10775,1805.0,1804.9,11.19731282]
[1745990912505,1.10775,1805.0,1804.9,16.19731282]
[1745990912809,4.31555,1805.0,1804.9,11.19731282]
[1745990913704,4.31555,1805.0,1804.9,14.52551282]
[1745990916009,4.31555,1805.0,1804.9,7.1562]
[1745990921406,4.41153872,1805.0,1804.9,3.828]
[1745990921711,6.04213872,1805.0,1804.9,3.828]
[1745990922012,5.94615,1805.0,1804.9,3.828]
[1745990922210,10.94615,1805.0,1804.9,3.828]
[1745990922411,6.04213004,1805.0,1804.9,3.0784]
[1745990922710,5.94615,1805.0,1804.9,3.0784]
[1745990923110,6.76085,1805.0,1804.9,3.0784]
[1745990923312,11.85684669,1805.0,1804.9,3.0784]
[1745990923609,11.85685309,1805.0,1804.9,3.0784]
[1745990925607,10.74910309,1805.0,1804.6,1.7414]
[1745990925816,4.31574,1804.7,1804.6,1.7414]
[1745990926515,6.00744,1804.7,1804.6,1.7414]
[1745990927517,1.108,1804.6,1804.5,3.828]
[1745990927820,2.7997,1804.6,1804.5,5.5294]
[1745990929010,1.108,1804.6,1804.5,5.5294]
[1745990932210,3.2078,1804.7,1804.5,5.5294]
[1745990932417,4.31574,1804.7,1804.6,2.5768]
[1745990933222,4.31574,1804.7,1804.6,2.58062759]
[1745990937126,5.98484,1804.7,1804.6,0.00382759]
[1745990937327,5.98484,1804.7,1804.6,1.66332759]
[1745990939421,4.31574,1804.7,1804.6,1.66332759]
[1745990940228,5.94814,1804.7,1804.6,1.66332759]
[1745990941431,2.74034,1804.7,1804.6,1.66332759]
[1745990941631,5.94814,1804.7,1804.6,1.66332759]
[1745990945031,4.31574,1804.7,1804.6,1.66332759]
[1745990952951,4.31574,1804.7,1804.6,7.77132759]
[1745990953249,4.31574,1804.7,1804.6,2.77132759]
[1745990953448,1.10793,1804.8,1804.7,1.10792]
[1745990953650,1.10793,1804.8,1804.7,4.45182]
[1745990953948,1.10793,1804.8,1804.7,9.45182]
[1745990954148,1.10793,1804.8,1804.7,13.27982]
[1745990955250,1.10793,1804.8,1804.7,6.3656]
[1745990955947,1.10793,1804.8,1804.7,7.47354]
[1745990958450,1.10793,1804.8,1804.7,6.3656]
[1745990958850,1.10793,1804.8,1804.7,5.5191]
[1745990959155,4.41553,1804.8,1804.7,5.5191]
[1745990960357,1.10793,1804.8,1804.7,5.5191]
[1745990961157,1.10793,1804.8,1804.7,3.828]
[1745990961354,2.76643,1804.8,1804.7,3.828]
[1745990979973,2.76643,1804.8,1804.7,1.86129]
[1745990980177,2.86238506,1804.8,1804.7,1e-05]
[1745990981073,2.76643,1804.8,1804.7,1e-05]
[1745990984877,5.97423,1804.8,1804.7,1e-05]
[1745990985380,6.07017351,1804.8,1804.7,1e-05]
[1745990985569,6.0701736,1804.8,1804.7,1e-05]
[1745990988269,5.97423,1804.8,1804.7,1e-05]
[1745990988775,4.31573,1804.8,1804.7,1e-05]
[1745990997594,4.31573,1804.8,1804.7,1.63131]
[1745990998884,5.93133,1804.8,1804.7,1.63131]
[1745991000089,4.31573,1804.8,1804.7,1.63131]
[1745991000694,3.2078,1805.0,1804.7,6.63131]
[1745991000895,1.10781,1804.9,1804.8,1.7117]
[1745991001199,4.3156,1805.0,1804.8,8.33047]
[1745991001494,1.10781,1804.9,1804.8,8.33047]
[1745991001693,1.10781,1804.9,1804.8,6.64757]
[1745991001998,1.10781,1804.9,1804.8,10.5397]
[1745991003189,1.10781,1804.9,1804.8,5.5397]
[1745991003499,1.10781,1804.9,1804.8,6.64757]
[1745991005310,1.10781,1804.9,1804.8,5.5397]
[1745991009003,1.10781,1804.9,1804.8,6.64757]
[1745991010511,4.31559,1805.0,1804.9,1.10781]
[1745991010811,3.2078,1805.0,1804.9,1.10781]
[1745991011206,3.2078,1805.0,1804.9,4.93581]
[1745991011409,4.31555,1805.0,1804.9,4.93581]
[1745991013614,1.10775,1805.0,1804.9,4.93581]
[1745991014213,1.10775,1805.0,1804.9,6.64391]
[1745991015218,1.10775,1805.0,1804.9,11.64391]
[1745991016118,1.10775,1805.0,1804.9,6.64391]
[1745991017520,4.31553,1805.1,1805.0,1.10775]
[1745991017816,4.31553,1805.1,1805.0,2.75545]
[1745991018115,4.31553,1805.1,1805.0,6.58345]
[1745991018518,4.31553,1805.1,1805.0,5.4757]
[1745991018907,4.31553,1805.1,1805.0,6.58345]
[1745991018908,3.2078,1805.1,1805.0,6.58345]
[1745991022913,1.10764,1805.2,1805.1,1.10769]
[1745991023216,1.10764,1805.2,1805.1,4.55749]
[1745991023922,5.9736,1805.3,1805.2,1.10763]
[1745991024127,5.9736,1805.3,1805.2,2.73173]
[1745991025123,5.9736,1805.3,1805.2,6.55973]
[1745991026117,5.9736,1805.3,1805.2,5.4521]
[1745991026321,5.9736,1805.3,1805.2,3.828]
[1745991026621,10.9736,1805.3,1805.2,2.67694]
[1745991026922,10.9736,1805.3,1805.2,1.36234]
[1745991031727,5.9736,1805.3,1805.2,1.36234]
[1745991045831,9.4846,1805.3,1805.2,1.36234]
[1745991048235,9.4846,1805.3,1805.2,2.95514]
[1745991050427,9.4846,1805.3,1805.2,1.36234]
[1745991054938,9.4846,1805.3,1805.2,3.04864]
[1745991060451,7.8264,1805.3,1805.2,3.04864]
[1745991060645,3.2078,1805.3,1805.2,4.15627]
[1745991060850,3.2078,1805.3,1805.2,9.15627]
[1745991061147,3.2078,1805.3,1805.2,4.15627]
[1745991061850,3.2078,1805.3,1805.2,9.15627]
[1745991062342,9.18785949,1805.5,1805.4,1.10751]
[1745991062541,9.18785949,1805.5,1805.4,9.61851]
[1745991063148,9.18785949,1805.5,1805.4,13.44651]
[1745991063355,10.29529949,1805.5,1805.4,16.76621]
[1745991064746,1.10744,1805.5,1805.4,51.4587]
[1745991064945,1.10744,1805.5,1805.4,47.9477]
[1745991065144,2.78234,1805.5,1805.4,47.9477]
[1745991065541,4.48544,1805.5,1805.4,47.9477]
[1745991068445,4.48544,1805.5,1805.4,7.1477]
[1745991068847,4.48544,1805.5,1805.4,6.2842]
[1745991072455,4.48544,1805.5,1805.4,7.39171]
[1745991072653,3.2078,1805.6,1805.5,1.10744]
[1745991072847,4.31518,1805.6,1805.5,3.61024]
[1745991073156,4.31518,1805.6,1805.5,7.43824]
[1745991074157,4.31518,1805.6,1805.5,6.3308]
[1745991078769,4.31518,1805.6,1805.5,5.4556]
[1745991080064,4.31518,1805.6,1805.5,3.828]
[1745991081272,4.31518,1805.6,1805.5,6.2945]
[1745991084975,4.31518,1805.6,1805.5,3.828]
[1745991087272,1.10738,1805.6,1805.5,3.828]
[1745991087470,4.31518,1805.6,1805.5,3.828]
[1745991092673,7.82518,1805.6,1805.5,3.828]
[1745991101075,3.2078,1805.6,1805.5,3.828]
[1745991101377,12.39565949,1805.8,1805.7,1.10732]
[1745991102177,12.39565949,1805.8,1805.7,3.828]
[1745991102178,3.2078,1805.8,1805.7,3.828]
[1745991102369,3.2078,1805.8,1805.7,5.5718]
[1745991102570,4.31506,1805.8,1805.7,5.5718]
[1745991103279,3.2078,1805.8,1805.7,6.67912]
[1745991103577,4.31506,1805.8,1805.7,6.67912]
[1745991103770,3.2078,1805.8,1805.7,11.67912]
[1745991104476,4.31506,1805.8,1805.7,11.67912]
[1745991104679,3.2078,1805.8,1805.7,11.67912]
[1745991105174,3.2078,1805.8,1805.7,6.67912]
[1745991112280,3.95405037,1806.2,1806.0,1.10714]
[1745991112281,4.31492,1806.1,1806.0,1.10714]
[1745991112981,4.31492,1806.1,1805.9,1.91575]
[1745991113180,4.31492,1806.1,1806.0,5.5055]
[1745991116386,4.31492,1806.1,1806.0,6.61264]
[1745991117990,3.2078,1806.1,1806.0,6.61264]
[1745991118689,4.31488,1806.1,1806.0,6.61264]
[1745991119186,3.2078,1806.1,1806.0,6.61264]
[1745991120190,4.31488,1806.1,1806.0,6.61264]
[1745991121594,1.10708,1806.1,1806.0,6.61264]
[1745991121794,4.31488,1806.1,1806.0,6.61264]
[1745991122394,3.2078,1806.1,1806.0,6.61264]
[1745991122692,4.31488,1806.1,1806.0,6.61264]
[1745991128094,5.17018,1806.1,1806.0,6.61264]
[1745991137598,1.96238,1806.1,1806.0,6.61264]
[1745991137796,5.17018,1806.1,1806.0,6.61264]
[1745991139094,4.0631,1806.1,1806.0,6.61264]
[1745991139292,5.17018,1806.1,1806.0,6.61264]
[1745991139489,5.6489,1806.1,1806.0,6.61264]
[1745991139694,6.75598,1806.1,1806.0,6.61264]
[1745991140498,1.5858,1806.1,1806.0,6.61264]
[1745991140696,4.0001,1806.3,1806.2,1.10702]
[1745991141398,5.10705,1806.3,1806.2,1.93982]
[1745991141598,6.71235,1806.3,1806.2,1.93982]
[1745991142100,6.71235,1806.3,1806.2,5.76782]
[1745991143000,6.71235,1806.3,1806.2,46.56782]
[1745991145897,5.6054,1806.3,1806.2,46.56782]
[1745991146206,6.71235,1806.3,1806.2,46.56782]
[1745991146699,6.71235,1806.3,1806.2,44.628]
[1745991147103,11.71235,1806.3,1806.2,3.828]
[1745991147904,1.10726,1805.8,1805.7,7.36931282]
[1745991148100,4.31506,1805.8,1805.7,11.19731282]
[1745991148809,5.97316,1805.8,1805.7,11.19731282]
[1745991149608,5.97316,1805.8,1805.7,3.828]
[1745991163118,5.97316,1805.8,1805.7,6.2207]
[1745991164124,5.97316,1805.8,1805.7,3.828]
[1745991166325,2.76536,1805.8,1805.7,3.828]
[1745991166627,5.97316,1805.8,1805.7,3.828]
[1745991167025,5.97316,1805.8,1805.7,5.4244]
[1745991171935,4.8659,1805.8,1805.7,6.53172]
[1745991172134,3.2078,1805.8,1805.7,6.53172]
[1745991172626,1.10717,1806.0,1805.9,1.1072]
[1745991172834,4.31493,1806.1,1806.0,1.10714]
[1745991173033,3.2078,1806.1,1806.0,1.10714]
[1745991173520,3.2078,1806.1,1806.0,2.80784]
[1745991174035,4.31488,1806.1,1806.0,2.80784]
[1745991174232,4.31488,1806.1,1806.0,6.63584]
[1745991177336,1.10708,1806.1,1806.0,6.63584]
[1745991177633,4.31488,1806.1,1806.0,6.63584]
[1745991180438,3.2078,1806.1,1806.0,6.63584]
[1745991180737,4.31488,1806.1,1806.0,6.63584]
[1745991183941,3.2078,1806.1,1806.0,6.63584]
[1745991184339,4.3148,1806.3,1806.2,1.10702]
[1745991184544,3.2078,1806.3,1806.2,1.10702]
[1745991185048,3.2078,1806.3,1806.2,5.80672]
[1745991187843,4.31475,1806.3,1806.2,3.828]
[1745991188040,5.99645,1806.3,1806.2,3.828]
[1745991188339,5.99645,1806.3,1806.2,4.93502]
[1745991188944,5.99645,1806.3,1806.2,3.828]
[1745991189647,5.99645,1806.3,1806.2,4.93502]
[1745991191238,4.8895,1806.3,1806.2,4.93502]
[1745991191941,4.8895,1806.3,1806.2,6.58902]
[1745991192743,3.2078,1806.3,1806.2,6.58902]
[1745991193043,3.2078,1806.3,1806.2,7.45132]
[1745991195241,3.2078,1806.3,1806.2,12.81609]
[1745991195635,4.31475,1806.3,1806.2,12.81609]
[1745991195834,4.31475,1806.3,1806.2,11.95379]
[1745991196240,5.12855,1806.3,1806.2,11.95379]
[1745991196743,5.12855,1806.3,1806.2,9.19277]
[1745991200248,5.12855,1806.3,1806.2,10.29979]
[1745991200849,5.12855,1806.3,1806.2,4.93502]
[1745991203547,5.12855,1806.3,1806.2,3.828]
[1745991204349,5.12855,1806.3,1806.2,4.93502]
[1745991207653,3.2078,1806.3,1806.2,4.93502]
[1745991207848,3.2078,1806.3,1806.2,6.54892]
[1745991208049,4.31475,1806.3,1806.2,6.54892]
[1745991208350,5.96265,1806.3,1806.2,6.54892]
[1745991208555,5.96265,1806.3,1806.2,3.828]
[1745991209551,5.96265,1806.3,1806.2,5.4419]
[1745991210051,5.96265,1806.3,1806.2,6.54892]
[1745991213057,5.96265,1806.3,1806.2,3.828]
[1745991214542,5.96265,1806.3,1806.2,4.93502]
[1745991215855,5.96265,1806.3,1806.2,3.828]
[1745991217658,5.96265,1806.3,1806.2,4.93502]
[1745991217845,5.96265,1806.3,1806.2,6.57892]
[1745991218049,4.8557,1806.3,1806.2,6.57892]
[1745991218857,5.96265,1806.3,1806.2,6.57892]
[1745991219746,8.43141362,1806.6,1806.2,6.57892]
[1745991219950,3.2078,1806.5,1806.4,1.10683]
[1745991220153,3.2078,1806.5,1806.4,2.85903]
[1745991221158,3.2078,1806.5,1806.4,6.68703]
[1745991226163,4.31457,1806.6,1806.5,1.10683]
[1745991226362,4.31457,1806.6,1806.5,2.80883]
[1745991227060,4.31457,1806.6,1806.5,6.63683]
[1745991228263,1.10677,1806.6,1806.5,6.63683]
[1745991228461,4.31457,1806.6,1806.5,6.63683]
[1745991230364,3.2078,1806.6,1806.5,6.63683]
[1745991232766,4.31457,1806.6,1806.5,6.63683]
[1745991232963,6.03547,1806.6,1806.5,6.63683]
[1745991233163,6.03547,1806.6,1806.5,1.702]
[1745991233460,1.10683,1806.5,1806.4,1.91575]
[1745991233662,4.49263,1806.5,1806.4,1.91575]
[1745991234163,4.49263,1806.5,1806.4,5.74375]
[1745991234364,4.49263,1806.5,1806.4,7.34705]
[1745991236267,3.3858,1806.5,1806.4,7.34705]
[1745991237066,4.49263,1806.5,1806.4,7.34705]
[1745991237959,3.3858,1806.5,1806.4,7.34705]
[1745991238155,4.31459,1806.6,1806.5,1.10683]
[1745991238360,4.31457,1806.6,1806.5,2.71153]
[1745991239067,4.31457,1806.6,1806.5,6.53953]
[1745991239267,5.94877,1806.6,1806.5,6.53953]
[1745991240473,4.842,1806.6,1806.5,6.53953]
[1745991242071,6.7118,1806.9,1806.8,1.10665]
[1745991242263,10.037,1806.9,1806.8,1.10665]
[1745991243160,11.14365,1806.9,1806.8,1.10665]